Workbook

Sheet Disclaimer
B10: 1. Who is the author of this Excel file document?
B11: The present file was developed by the two directors of the German Institute of Corporate Finance (GICF),
B12: Prof. Dr. Dr. Joachim Häcker and Prof. Dr. Dr. Dietmar Ernst."
B13: The German Institute of Corporate Finance (GICF) is an institute of Nürtingen-Geislingen University in cooperation with Deutsche Börse AG. The GICF awards the title Certified Financial Modeler.
B17: 2. Is this Excel file protected by the German Copyright Act (UrhG)?
B18: Pursuant to paragraph 1 UrhG (Act on Copyright and Related Rights (Copyright Act)), the authors of scientific works profit from protection of their works according to this law.
B19: Pursuant to paragraph 2 section 2 UrhG, a work is given provided it is a personal and intellectual creation. Paragraph 69a UrhG is applicable to software such as this Excel file.
B20: Thus the Copyright Act is applicable to software. Any computer program that is statistically unique is protected.
B21: All these requirements are met by this Excel file and it is therefore protected by the Copyright Act.
B24: 3. Am I liable to prosecution if I pass on this Excel file to third parties or reuse it for my work?
B25: You obtain this Excel file when registering for the Certified Financial Modeler program.
B26: This Excel file is for you and your personal use only.
B27: Should you pass on this Excel file to third parties, use parts or the entire tool without prior authorisation without signalling such a use and referring to the author GICF,
B28: you are in contravention of applicable copyright law and are liable to prosecution. You then have to take into account that from the trade marks stated under item 1, claims will be made and you will be prosecuted.
B30: The unauthorised use of the works protected under the Copyright Act can be punished with three years of imprisonment pursuant to paragraph 106 UrhG.
B31: According to paragraph 108b UrhG unauthorised interventions in technical protection measures and information required for exercising this right can be punished with one year of imprisonment.
B32: The removal of any copyright protection of this Excel file counts as such an act.
B33: The sentencing can be increased to three years (unauthorised interventions into technical safety measures) and five years (unauthorised commercial use) in case of commercial use.
B35: 4. Disclaimer
B36: The contents were created with the greatest possible care. However, the authors and publishers assume no responsibility for the accuracy, completeness, quality and timeliness of the content provided.
B37: Liability claims against the authors and publishers, which refer to material or immaterial nature, which were caused by the use or disuse of the information provided or by the use of incorrect and incomplete information,
B38: are excluded in principle, provided that there is no demonstrably intentional or grossly negligent fault on the part of the authors. The user is at his own risk.

Sheet Cash Flow Statement (1)
B2: Cash Flow Statement
C4: Actual | D4: Actual | E4: Actual | F4: Plan | G4: Plan | H4: Plan | I4: Plan | J4: Plan | K4: Plan
B5: € million | C5: t-2 | D5: t-1 | E5: t0 | F5: t1 | G5: t2 | H5: t3 | I5: t4 | J5: t5 | K5: TV
B7: EBIT | F7: 4757.390994 | G7: 5042.834454 | H7: 5345.404521 | I7: 5666.128792 | J7: 5779.451368 | K7: 5895.040395
B8: + Amortization of goodwill | F8: 0 | G8: 0 | H8: 0 | I8: 0 | J8: 0 | K8: 0
B9: + Amortization of other intangible assets | F9: 0 | G9: 0 | H9: 0 | I9: 0 | J9: 0 | K9: 0
B10: + Deprecation on property, plant and equipment | F10: 2896 | G10: 2896 | H10: 2896 | I10: 2896 | J10: 2896 | K10: 2896
B11: + Amortization of Investments accounted for using the equity method | F11: 0 | G11: 0 | H11: 0 | I11: 0 | J11: 0 | K11: 0
B12: + Amortization of other financial assets | F12: 0 | G12: 0 | H12: 0 | I12: 0 | J12: 0 | K12: 0
B13: + Change in other noncurrent provisions | F13: 0 | G13: 0 | H13: 0 | I13: 0 | J13: 39.54 | K13: 40.3308
B14: + Change in other current provisions | F14: 0 | G14: 0 | H14: 0 | I14: 0 | J14: 94.54 | K14: 96.4308
B15: - Change in inventories | F15: 361.6405195 | G15: 449.4384312 | H15: 476.404737 | I15: 504.9890213 | J15: 178.4294542 | K15: 181.9980433
B16: - Change in trade accounts receivable | F16: 501.5598145 | G16: 484.2335889 | H16: 513.2876042 | I16: 544.0848605 | J16: 192.2433174 | K16: 196.0881837
B17: - Change in other assets (current) | F17: 160.08 | G17: 169.6848 | H17: 179.865888 | I17: 190.6578413 | J17: 67.36577059 | K17: 68.713086
B18: + Change in trade accounts payable | F18: 295.8613004 | G18: 286.131678 | H18: 303.2995787 | I18: 321.4975534 | J18: 113.5958022 | K18: 115.8677183
B19: + Change in other liabilities (current) | F19: 76.86 | G19: 81.4716 | H19: 86.359896 | I19: 91.54148976 | J19: 32.34465972 | K19: 32.99155291
B20: - Income taxes | F20: 1017.85928 | G20: 1091.91856 | H20: 1170.192431 | I20: 1253.105938 | J20: 1288.886161 | K20: 1328.480888
B22: Operating cash flow | F22: =F7+F8+F9+F10+F11+F12+F13+F14-F15-F16-F17+F18+F19-F20 -> 5984.972681 | G22: =G7+G8+G9+G10+G11+G12+G13+G14-G15-G16-G17+G18+G19-G20 -> 6111.162351 | H22: 6291.313335 | I22: 6482.330174 | J22: 7228.547126 | K22: 7301.381066
B24: - Investment in goodwill | F24: 0 | G24: 0 | H24: 0 | I24: 0 | J24: 0 | K24: 0
B25: - Investment in other intangible assets | F25: 0 | G25: 0 | H25: 0 | I25: 0 | J25: 0 | K25: 0
B26: - Investment in property, plant and equipment | F26: 2896 | G26: 2896 | H26: 2896 | I26: 2896 | J26: 2896 | K26: 2896
B27: - Investment in Investments accounted for using the equity method | F27: 0 | G27: 0 | H27: 0 | I27: 0 | J27: 0 | K27: 0
B28: - Investment in other noncurrent assets | F28: 0 | G28: 0 | H28: 0 | I28: 0 | J28: 0 | K28: 0
B29: + Change in other liabilities (noncurrent) | F29: 0 | G29: 0 | H29: 0 | I29: 0 | J29: 0 | K29: 0
B30: + Change in deferred taxes (asset side), deferred taxes (liabilities side), and income tax liabilities | F30: 0 | G30: 0 | H30: 0 | I30: 0 | J30: 0 | K30: 0
B32: Investing cash flow | F32: =-F24-F25-F26-F27-F28-F29-F30 -> -2896 | G32: =-G24-G25-G26-G27-G28-G29-G30 -> -2896 | H32: -2896 | I32: -2896 | J32: -2896 | K32: -2896
B34: - Dividend | F34: 1717.944483 | G34: 1842.941853 | H34: 1975.052614 | I34: 2114.994161 | J34: 2175.384078 | K34: 2242.212119
B35: - Income after taxes attributable to non-controlling interest | F35: 21.44003055 | G35: 23.0000038 | H35: 24.64875251 | I35: 26.39522981 | J35: 27.1488989 | K35: 27.9829161
B36: + Change in provisions for pensions and other post-employment benefits | F36: 736.8 | G36: 810.48 | H36: 891.528 | I36: 980.6808 | J36: 215.749776 | K36: 220.0647715
B37: + Change in noncurrent financial liabilities | F37: -487.2406424 | G37: -444.7713323 | H37: -406.0037706 | I37: -370.6153023 | J37: 77.62737905 | K37: 79.17992663
B38: + Change in current financial liabilities | F38: 206.46 | G38: 218.8476 | H38: 231.978456 | I38: 245.8971634 | J38: 86.88366439 | K38: 88.62133767
B39: + Result from associates accounted for using the equity method | F39: 0 | G39: 0 | H39: 0 | I39: 0 | J39: 0 | K39: 0
B40: + Financial income | F40: 68.49412929 | G40: 107.9806604 | H40: 152.6748584 | I40: 203.4890583 | J40: 261.0860697 | K40: 323.2403399
B41: - Financial expenses | F41: 631.8263678 | G41: 651.5973047 | H41: 676.3364248 | I41: 706.2322664 | J41: 729.7205125 | K41: 744.3149227
B43: Financing cash flow | F43: =-F34-F35+F36+F37+F38+F39+F40-F41 -> -1846.697395 | G43: =-G34-G35+G36+G37+G38+G39+G40-G41 -> -1825.002233 | H43: -1805.860247 | I43: -1788.169938 | J43: -2290.9066 | K43: -2303.403582
B45: Net cash flow | F45: =F22+F32+F43 -> 1242.275286 | G45: =G22+G32+G43 -> 1390.160118 | H45: 1589.453088 | I45: 1798.160236 | J45: 2041.640526 | K45: 2101.977484
B47: Liquidity 01.01 | F47: 1662 | G47: 2904.275286 | H47: 4294.435404 | I47: 5883.888492 | J47: 7682.048728 | K47: 9723.689255
B48: Liquidity 31.12 | E48: 1662 | F48: 2904.275286 | G48: 4294.435404 | H48: 5883.888492 | I48: 7682.048728 | J48: 9723.689255 | K48: 11825.66674
B50: Change | F50: =F48-F47 -> 1242.275286 | G50: =G48-G47 -> 1390.160118 | H50: 1589.453088 | I50: 1798.160236 | J50: 2041.640526 | K50: 2101.977484
B52: Check | F52: =ROUND(F45-F50,5) -> 0 | G52: =ROUND(G45-G50,5) -> 0 | H52: 0 | I52: 0 | J52: 0 | K52: 0

Sheet Cash Flow Statement (2)
B2: Cash Flow Statement
C4: Actual | D4: Actual | E4: Actual | F4: Plan | G4: Plan | H4: Plan | I4: Plan | J4: Plan | K4: Plan
B5: € million | C5: t-2 | D5: t-1 | E5: t0 | F5: t1 | G5: t2 | H5: t3 | I5: t4 | J5: t5 | K5: TV
B7: EBIT | F7: 4757.390994 | G7: 5042.834454 | H7: 5345.404521 | I7: 5666.128792 | J7: 5779.451368 | K7: 5895.040395
B8: + Amortization of goodwill | F8: 0 | G8: 0 | H8: 0 | I8: 0 | J8: 0 | K8: 0
B9: + Amortization of other intangible assets | F9: 0 | G9: 0 | H9: 0 | I9: 0 | J9: 0 | K9: 0
B10: + Deprecation on property, plant and equipment | F10: 2896 | G10: 2896 | H10: 2896 | I10: 2896 | J10: 2896 | K10: 2896
B11: + Amortization of Investments accounted for using the equity method | F11: 0 | G11: 0 | H11: 0 | I11: 0 | J11: 0 | K11: 0
B12: + Amortization of other financial assets | F12: 0 | G12: 0 | H12: 0 | I12: 0 | J12: 0 | K12: 0
B13: + Change in other noncurrent provisions | F13: 0 | G13: 0 | H13: 0 | I13: 0 | J13: 39.54 | K13: 40.3308
B14: + Change in other current provisions | F14: 0 | G14: 0 | H14: 0 | I14: 0 | J14: 94.54 | K14: 96.4308
B15: - Change in inventories | F15: 361.6405195 | G15: 449.4384312 | H15: 476.404737 | I15: 504.9890213 | J15: 178.4294542 | K15: 181.9980433
B16: - Change in trade accounts receivable | F16: 501.5598145 | G16: 484.2335889 | H16: 513.2876042 | I16: 544.0848605 | J16: 192.2433174 | K16: 196.0881837
B17: - Change in other assets (current) | F17: 160.08 | G17: 169.6848 | H17: 179.865888 | I17: 190.6578413 | J17: 67.36577059 | K17: 68.713086
B18: + Change in trade accounts payable | F18: 295.8613004 | G18: 286.131678 | H18: 303.2995787 | I18: 321.4975534 | J18: 113.5958022 | K18: 115.8677183
B19: + Change in other liabilities (current) | F19: 76.86 | G19: 81.4716 | H19: 86.359896 | I19: 91.54148976 | J19: 32.34465972 | K19: 32.99155291
B20: - Income taxes | F20: 1017.85928 | G20: 1091.91856 | H20: 1170.192431 | I20: 1253.105938 | J20: 1288.886161 | K20: 1328.480888
B22: Operating cash flow | F22: =F7+F8+F9+F10+F11+F12+F13+F14-F15-F16-F17+F18+F19-F20 -> 5984.972681 | G22: =G7+G8+G9+G10+G11+G12+G13+G14-G15-G16-G17+G18+G19-G20 -> 6111.162351 | H22: 6291.313335 | I22: 6482.330174 | J22: 7228.547126 | K22: 7301.381066
B24: - Investment in goodwill | F24: 0 | G24: 0 | H24: 0 | I24: 0 | J24: 0 | K24: 0
B25: - Investment in other intangible assets | F25: 0 | G25: 0 | H25: 0 | I25: 0 | J25: 0 | K25: 0
B26: - Investment in property, plant and equipment | F26: 2896 | G26: 2896 | H26: 2896 | I26: 2896 | J26: 2896 | K26: 2896
B27: - Investment in Investments accounted for using the equity method | F27: 0 | G27: 0 | H27: 0 | I27: 0 | J27: 0 | K27: 0
B28: - Investment in other noncurrent assets | F28: 0 | G28: 0 | H28: 0 | I28: 0 | J28: 0 | K28: 0
B29: + Change in other liabilities (noncurrent) | F29: 0 | G29: 0 | H29: 0 | I29: 0 | J29: 0 | K29: 0
B30: + Change in deferred taxes (asset side), deferred taxes (liabilities side), and income tax liabilities | F30: 0 | G30: 0 | H30: 0 | I30: 0 | J30: 0 | K30: 0
B32: Investing cash flow | F32: =-F24-F25-F26-F27-F28-F29-F30 -> -2896 | G32: =-G24-G25-G26-G27-G28-G29-G30 -> -2896 | H32: -2896 | I32: -2896 | J32: -2896 | K32: -2896
B34: - Dividend | F34: 1717.944483 | G34: 1842.941853 | H34: 1975.052614 | I34: 2114.994161 | J34: 2175.384078 | K34: 2242.212119
B35: - Income after taxes attributable to non-controlling interest | F35: 21.44003055 | G35: 23.0000038 | H35: 24.64875251 | I35: 26.39522981 | J35: 27.1488989 | K35: 27.9829161
B36: + Change in provisions for pensions and other post-employment benefits | F36: 736.8 | G36: 810.48 | H36: 891.528 | I36: 980.6808 | J36: 215.749776 | K36: 220.0647715
B37: + Change in noncurrent financial liabilities | F37: -487.2406424 | G37: -444.7713323 | H37: -406.0037706 | I37: -370.6153023 | J37: 77.62737905 | K37: 79.17992663
B38: + Change in current financial liabilities | F38: 206.46 | G38: 218.8476 | H38: 231.978456 | I38: 245.8971634 | J38: 86.88366439 | K38: 88.62133767
B39: + Result from associates accounted for using the equity method | F39: 0 | G39: 0 | H39: 0 | I39: 0 | J39: 0 | K39: 0
B40: + Financial income | F40: 68.49412929 | G40: 107.9806604 | H40: 152.6748584 | I40: 203.4890583 | J40: 261.0860697 | K40: 323.2403399
B41: - Financial expenses | F41: 631.8263678 | G41: 651.5973047 | H41: 676.3364248 | I41: 706.2322664 | J41: 729.7205125 | K41: 744.3149227
B43: Financing cash flow | F43: =-F34-F35+F36+F37+F38+F39+F40-F41 -> -1846.697395 | G43: =-G34-G35+G36+G37+G38+G39+G40-G41 -> -1825.002233 | H43: -1805.860247 | I43: -1788.169938 | J43: -2290.9066 | K43: -2303.403582
B45: Net cash flow | F45: =F22+F32+F43 -> 1242.275286 | G45: =G22+G32+G43 -> 1390.160118 | H45: 1589.453088 | I45: 1798.160236 | J45: 2041.640526 | K45: 2101.977484
B47: Liquidity 01.01 | F47: 1662 | G47: 2904.275286 | H47: 4294.435404 | I47: 5883.888492 | J47: 7682.048728 | K47: 9723.689255
B48: Liquidity 31.12 | E48: 1662 | F48: 2904.275286 | G48: 4294.435404 | H48: 5883.888492 | I48: 7682.048728 | J48: 9723.689255 | K48: 11825.66674
B50: Change | F50: =F48-F47 -> 1242.275286 | G50: =G48-G47 -> 1390.160118 | H50: 1589.453088 | I50: 1798.160236 | J50: 2041.640526 | K50: 2101.977484
B52: Check | F52: =IF(ROUND(F45-F50,5)=0,"OK","DEVIATION") -> OK | G52: =IF(ROUND(G45-G50,5)=0,"OK","DEVIATION") -> OK | H52: OK | I52: OK | J52: OK | K52: OK

Sheet Cash Flow Statement (3)
B2: Cash Flow Statement
C4: Actual | D4: Actual | E4: Actual | F4: Plan | G4: Plan | H4: Plan | I4: Plan | J4: Plan | K4: Plan
B5: € million | C5: t-2 | D5: t-1 | E5: t0 | F5: t1 | G5: t2 | H5: t3 | I5: t4 | J5: t5 | K5: TV
B7: EBIT | F7: 4757.390994 | G7: 5042.834454 | H7: 5345.404521 | I7: 5666.128792 | J7: 5779.451368 | K7: 5895.040395
B8: + Amortization of goodwill | F8: 0 | G8: 0 | H8: 0 | I8: 0 | J8: 0 | K8: 0
B9: + Amortization of other intangible assets | F9: 0 | G9: 0 | H9: 0 | I9: 0 | J9: 0 | K9: 0
B10: + Deprecation on property, plant and equipment | F10: 2896 | G10: 2896 | H10: 2896 | I10: 2896 | J10: 2896 | K10: 2896
B11: + Amortization of Investments accounted for using the equity method | F11: 0 | G11: 0 | H11: 0 | I11: 0 | J11: 0 | K11: 0
B12: + Amortization of other financial assets | F12: 0 | G12: 0 | H12: 0 | I12: 0 | J12: 0 | K12: 0
B13: + Change in other noncurrent provisions | F13: 0 | G13: 0 | H13: 0 | I13: 0 | J13: 39.54 | K13: 40.3308
B14: + Change in other current provisions | F14: 0 | G14: 0 | H14: 0 | I14: 0 | J14: 94.54 | K14: 96.4308
B15: - Change in inventories | F15: 361.6405195 | G15: 449.4384312 | H15: 476.404737 | I15: 504.9890213 | J15: 178.4294542 | K15: 181.9980433
B16: - Change in trade accounts receivable | F16: 501.5598145 | G16: 484.2335889 | H16: 513.2876042 | I16: 544.0848605 | J16: 192.2433174 | K16: 196.0881837
B17: - Change in other assets (current) | F17: 160.08 | G17: 169.6848 | H17: 179.865888 | I17: 190.6578413 | J17: 67.36577059 | K17: 68.713086
B18: + Change in trade accounts payable | F18: 295.8613004 | G18: 286.131678 | H18: 303.2995787 | I18: 321.4975534 | J18: 113.5958022 | K18: 115.8677183
B19: + Change in other liabilities (current) | F19: 76.86 | G19: 81.4716 | H19: 86.359896 | I19: 91.54148976 | J19: 32.34465972 | K19: 32.99155291
B20: - Income taxes | F20: 1017.85928 | G20: 1091.91856 | H20: 1170.192431 | I20: 1253.105938 | J20: 1288.886161 | K20: 1328.480888
B22: Operating cash flow | F22: =F7+F8+F9+F10+F11+F12+F13+F14-F15-F16-F17+F18+F19-F20 -> 5984.972681 | G22: =G7+G8+G9+G10+G11+G12+G13+G14-G15-G16-G17+G18+G19-G20 -> 6111.162351 | H22: 6291.313335 | I22: 6482.330174 | J22: 7228.547126 | K22: 7301.381066
B24: - Investment in goodwill | F24: 0 | G24: 0 | H24: 0 | I24: 0 | J24: 0 | K24: 0
B25: - Investment in other intangible assets | F25: 0 | G25: 0 | H25: 0 | I25: 0 | J25: 0 | K25: 0
B26: - Investment in property, plant and equipment | F26: 2896 | G26: 2896 | H26: 2896 | I26: 2896 | J26: 2896 | K26: 2896
B27: - Investment in Investments accounted for using the equity method | F27: 0 | G27: 0 | H27: 0 | I27: 0 | J27: 0 | K27: 0
B28: - Investment in other noncurrent assets | F28: 0 | G28: 0 | H28: 0 | I28: 0 | J28: 0 | K28: 0
B29: + Change in other liabilities (noncurrent) | F29: 0 | G29: 0 | H29: 0 | I29: 0 | J29: 0 | K29: 0
B30: + Change in deferred taxes (asset side), deferred taxes (liabilities side), and income tax liabilities | F30: 0 | G30: 0 | H30: 0 | I30: 0 | J30: 0 | K30: 0
B32: Investing cash flow | F32: =-F24-F25-F26-F27-F28-F29-F30 -> -2896 | G32: =-G24-G25-G26-G27-G28-G29-G30 -> -2896 | H32: -2896 | I32: -2896 | J32: -2896 | K32: -2896
B34: - Dividend | F34: 1717.944483 | G34: 1842.941853 | H34: 1975.052614 | I34: 2114.994161 | J34: 2175.384078 | K34: 2242.212119
B35: - Income after taxes attributable to non-controlling interest | F35: 21.44003055 | G35: 23.0000038 | H35: 24.64875251 | I35: 26.39522981 | J35: 27.1488989 | K35: 27.9829161
B36: + Change in provisions for pensions and other post-employment benefits | F36: 736.8 | G36: 810.48 | H36: 891.528 | I36: 980.6808 | J36: 215.749776 | K36: 220.0647715
B37: + Change in noncurrent financial liabilities | F37: -487.2406424 | G37: -444.7713323 | H37: -406.0037706 | I37: -370.6153023 | J37: 77.62737905 | K37: 79.17992663
B38: + Change in current financial liabilities | F38: 206.46 | G38: 218.8476 | H38: 231.978456 | I38: 245.8971634 | J38: 86.88366439 | K38: 88.62133767
B39: + Result from associates accounted for using the equity method | F39: 0 | G39: 0 | H39: 0 | I39: 0 | J39: 0 | K39: 0
B40: + Financial income | F40: 68.49412929 | G40: 107.9806604 | H40: 152.6748584 | I40: 203.4890583 | J40: 261.0860697 | K40: 323.2403399
B41: - Financial expenses | F41: 631.8263678 | G41: 651.5973047 | H41: 676.3364248 | I41: 706.2322664 | J41: 729.7205125 | K41: 744.3149227
B43: Financing cash flow | F43: =-F34-F35+F36+F37+F38+F39+F40-F41 -> -1846.697395 | G43: =-G34-G35+G36+G37+G38+G39+G40-G41 -> -1825.002233 | H43: -1805.860247 | I43: -1788.169938 | J43: -2290.9066 | K43: -2303.403582
B45: Net cash flow | F45: =F22+F32+F43 -> 1242.275286 | G45: =G22+G32+G43 -> 1390.160118 | H45: 1589.453088 | I45: 1798.160236 | J45: 2041.640526 | K45: 2101.977484
B47: Liquidity 01.01 | F47: 1662 | G47: 2904.275286 | H47: 4294.435404 | I47: 5883.888492 | J47: 7682.048728 | K47: 9723.689255
B48: Liquidity 31.12 | E48: 1662 | F48: 2904.275286 | G48: 4294.435404 | H48: 5883.888492 | I48: 7682.048728 | J48: 9723.689255 | K48: 11825.66674
B50: Change | F50: =F48-F47 -> 1242.275286 | G50: =G48-G47 -> 1390.160118 | H50: 1589.453088 | I50: 1798.160236 | J50: 2041.640526 | K50: 2101.977484
B52: Check | F52: =RUNDE(F45-F50,5) ->  | G52: =ROUND(G45-G50,5) -> 0 | H52: 0 | I52: 0 | J52: 0 | K52: 0
B54: Binary control 1 | F54: =IF(ISERROR(F52),1,0) -> 1 | G54: =IF(ISERROR(G52),1,0) -> 0 | H54: 0 | I54: 0 | J54: 0 | K54: 0
B55: Binary control 2 | F55: =IF(F54<>0,0,IF(ROUND(F45-F50,5)=0,0,1)) -> 0 | G55: 0 | H55: 0 | I55: 0 | J55: 0 | K55: 0
B56: Result binary control | F56: =MIN(SUM(F54:F55),1) -> 1 | G56: 0 | H56: 0 | I56: 0 | J56: 0 | K56: 0

Sheet Cash Flow Statement (4)
B2: Cash Flow Statement
C4: Actual | D4: Actual | E4: Actual | F4: Plan | G4: Plan | H4: Plan | I4: Plan | J4: Plan | K4: Plan
B5: € million | C5: t-2 | D5: t-1 | E5: t0 | F5: t1 | G5: t2 | H5: t3 | I5: t4 | J5: t5 | K5: TV
B7: EBIT | F7: 4757.390994 | G7: 5042.834454 | H7: 5345.404521 | I7: 5666.128792 | J7: 5779.451368 | K7: 5895.040395
B8: + Amortization of goodwill | F8: 0 | G8: 0 | H8: 0 | I8: 0 | J8: 0 | K8: 0
B9: + Amortization of other intangible assets | F9: 0 | G9: 0 | H9: 0 | I9: 0 | J9: 0 | K9: 0
B10: + Deprecation on property, plant and equipment | F10: 2896 | G10: 2896 | H10: 2896 | I10: 2896 | J10: 2896 | K10: 2896
B11: + Amortization of Investments accounted for using the equity method | F11: 0 | G11: 0 | H11: 0 | I11: 0 | J11: 0 | K11: 0
B12: + Amortization of other financial assets | F12: 0 | G12: 0 | H12: 0 | I12: 0 | J12: 0 | K12: 0
B13: + Change in other noncurrent provisions | F13: 0 | G13: 0 | H13: 0 | I13: 0 | J13: 39.54 | K13: 40.3308
B14: + Change in other current provisions | F14: 0 | G14: 0 | H14: 0 | I14: 0 | J14: 94.54 | K14: 96.4308
B15: - Change in inventories | F15: 361.6405195 | G15: 449.4384312 | H15: 476.404737 | I15: 504.9890213 | J15: 178.4294542 | K15: 181.9980433
B16: - Change in trade accounts receivable | F16: 501.5598145 | G16: 484.2335889 | H16: 513.2876042 | I16: 544.0848605 | J16: 192.2433174 | K16: 196.0881837
B17: - Change in other assets (current) | F17: 160.08 | G17: 169.6848 | H17: 179.865888 | I17: 190.6578413 | J17: 67.36577059 | K17: 68.713086
B18: + Change in trade accounts payable | F18: 295.8613004 | G18: 286.131678 | H18: 303.2995787 | I18: 321.4975534 | J18: 113.5958022 | K18: 115.8677183
B19: + Change in other liabilities (current) | F19: 76.86 | G19: 81.4716 | H19: 86.359896 | I19: 91.54148976 | J19: 32.34465972 | K19: 32.99155291
B20: - Income taxes | F20: 1017.85928 | G20: 1091.91856 | H20: 1170.192431 | I20: 1253.105938 | J20: 1288.886161 | K20: 1328.480888
B22: Operating cash flow | F22: =F7+F8+F9+F10+F11+F12+F13+F14-F15-F16-F17+F18+F19-F20 -> 5984.972681 | G22: =G7+G8+G9+G10+G11+G12+G13+G14-G15-G16-G17+G18+G19-G20 -> 6111.162351 | H22: 6291.313335 | I22: 6482.330174 | J22: 7228.547126 | K22: 7301.381066
B24: - Investment in goodwill | F24: 0 | G24: 0 | H24: 0 | I24: 0 | J24: 0 | K24: 0
B25: - Investment in other intangible assets | F25: 0 | G25: 0 | H25: 0 | I25: 0 | J25: 0 | K25: 0
B26: - Investment in property, plant and equipment | F26: 2896 | G26: 2896 | H26: 2896 | I26: 2896 | J26: 2896 | K26: 2896
B27: - Investment in Investments accounted for using the equity method | F27: 0 | G27: 0 | H27: 0 | I27: 0 | J27: 0 | K27: 0
B28: - Investment in other noncurrent assets | F28: 0 | G28: 0 | H28: 0 | I28: 0 | J28: 0 | K28: 0
B29: + Change in other liabilities (noncurrent) | F29: 0 | G29: 0 | H29: 0 | I29: 0 | J29: 0 | K29: 0
B30: + Change in deferred taxes (asset side), deferred taxes (liabilities side), and income tax liabilities | F30: 0 | G30: 0 | H30: 0 | I30: 0 | J30: 0 | K30: 0
B32: Investing cash flow | F32: =-F24-F25-F26-F27-F28-F29-F30 -> -2896 | G32: =-G24-G25-G26-G27-G28-G29-G30 -> -2896 | H32: -2896 | I32: -2896 | J32: -2896 | K32: -2896
B34: - Dividend | F34: 1717.944483 | G34: 1842.941853 | H34: 1975.052614 | I34: 2114.994161 | J34: 2175.384078 | K34: 2242.212119
B35: - Income after taxes attributable to non-controlling interest | F35: 21.44003055 | G35: 23.0000038 | H35: 24.64875251 | I35: 26.39522981 | J35: 27.1488989 | K35: 27.9829161
B36: + Change in provisions for pensions and other post-employment benefits | F36: 736.8 | G36: 810.48 | H36: 891.528 | I36: 980.6808 | J36: 215.749776 | K36: 220.0647715
B37: + Change in noncurrent financial liabilities | F37: -487.2406424 | G37: -444.7713323 | H37: -406.0037706 | I37: -370.6153023 | J37: 77.62737905 | K37: 79.17992663
B38: + Change in current financial liabilities | F38: 206.46 | G38: 218.8476 | H38: 231.978456 | I38: 245.8971634 | J38: 86.88366439 | K38: 88.62133767
B39: + Result from associates accounted for using the equity method | F39: 0 | G39: 0 | H39: 0 | I39: 0 | J39: 0 | K39: 0
B40: + Financial income | F40: 68.49412929 | G40: 107.9806604 | H40: 152.6748584 | I40: 203.4890583 | J40: 261.0860697 | K40: 323.2403399
B41: - Financial expenses | F41: 631.8263678 | G41: 651.5973047 | H41: 676.3364248 | I41: 706.2322664 | J41: 729.7205125 | K41: 744.3149227
B43: Financing cash flow | F43: =-F34-F35+F36+F37+F38+F39+F40-F41 -> -1846.697395 | G43: =-G34-G35+G36+G37+G38+G39+G40-G41 -> -1825.002233 | H43: -1805.860247 | I43: -1788.169938 | J43: -2290.9066 | K43: -2303.403582
B45: Net cash flow | F45: =F22+F32+F43 -> 1242.275286 | G45: =G22+G32+G43 -> 1390.160118 | H45: 1589.453088 | I45: 1798.160236 | J45: 2041.640526 | K45: 2101.977484
B47: Liquidity 01.01 | F47: 1662 | G47: 2904.275286 | H47: 4294.435404 | I47: 5883.888492 | J47: 7682.048728 | K47: 9723.689255
B48: Liquidity 31.12 | E48: 1662 | F48: 2900 | G48: 4294.435404 | H48: 5883.888492 | I48: 7682.048728 | J48: 9723.689255 | K48: 11825.66674
B50: Change | F50: =F48-F47 -> 1238 | G50: =G48-G47 -> 1390.160118 | H50: 1589.453088 | I50: 1798.160236 | J50: 2041.640526 | K50: 2101.977484
B52: Check | F52: =ROUND(F45-F50,5) -> 4.27529 | G52: =ROUND(G45-G50,5) -> 0 | H52: 0 | I52: 0 | J52: 0 | K52: 0
B54: Binary control 1 | F54: =IF(ISERROR(F52),1,0) -> 0 | G54: =IF(ISERROR(G52),1,0) -> 0 | H54: 0 | I54: 0 | J54: 0 | K54: 0
B55: Binary control 2 | F55: =IF(F54<>0,0,IF(ROUND(F45-F50,5)=0,0,1)) -> 1 | G55: 0 | H55: 0 | I55: 0 | J55: 0 | K55: 0
B56: Result binary control | F56: =MIN(SUM(F54:F55),1) -> 1 | G56: 0 | H56: 0 | I56: 0 | J56: 0 | K56: 0
